fUST/lending_fUST_20250524
["ID","MTS","AMOUNT","RATE_DAILY","PERIOD"]
[362169462,1748052635407,-430.0,0.00023193,2]
[362169463,1748052635417,-430.0,0.00023193,2]
[362169464,1748052635427,-293.44048431,0.00023193,2]
[362169465,1748052635436,-431.78694812,0.00023193,2]
[362169466,1748052635447,-437.90719592,0.00023193,2]
[362169467,1748052635458,-435.93830144,0.00023193,2]
[362169468,1748052635470,-438.09148436,0.00023193,2]
[362169469,1748052635480,-430.0,0.00023193,2]
[362169470,1748052635492,-430.0,0.00023193,2]
[362169471,1748052635502,-430.0,0.00023193,2]
[362169472,1748052635513,-430.0,0.00023193,2]
[362169473,1748052635523,-434.36436495,0.00023193,2]
[362169474,1748052635534,-431.63224969,0.00023193,2]
[362169475,1748052635545,-465.31407801,0.00023193,2]
[362169476,1748052635556,-430.0,0.00023193,2]
[362169477,1748052635566,-430.0,0.00023193,2]
[362169478,1748052635576,-430.0,0.00023193,2]
[362169479,1748052635586,-430.0,0.00023193,2]
[362169480,1748052635596,-430.0,0.00023193,2]
[362169481,1748052635607,-435.38093492,0.00023193,2]
[362169482,1748052635619,-506.84867967,0.00023193,2]
[362169483,1748052635630,-440.00742568,0.00023193,2]
[362169484,1748052635640,-433.71159689,0.00023193,2]
[362169485,1748052635650,-430.0,0.00023193,2]
[362169486,1748052635660,-246.11644543,0.00023193,2]
[362169487,1748052635670,-433.24201205,0.00023193,2]
[362169488,1748052635680,-432.86079012,0.00023193,2]
[362169489,1748052635692,-426.60494726,0.00023193,2]
[362169490,1748052635703,-441.39666371,0.00023193,2]
[362169491,1748052635715,-430.0,0.00023193,2]
[362169492,1748052635725,-430.23299619,0.00023193,2]
[362169493,1748052635736,-432.79519022,0.00023193,2]
[362169494,1748052635746,-437.38279166,0.00023193,2]
[362169495,1748052635756,-375.03083005,0.00023193,2]
[362169496,1748052635767,-500.0,0.00023193,2]
[362169497,1748052635777,-500.0,0.00023193,2]
[362169498,1748052635787,-430.0,0.00023193,2]
[362169499,1748052635799,-438.19266144,0.00023193,2]
[362169500,1748052635809,-665.25,0.00023193,2]
[362169501,1748052635819,-430.0,0.00023193,2]
[362169502,1748052635828,-446.04413179,0.00023193,2]
[362169503,1748052635838,-430.0,0.00023193,2]
[362169504,1748052635847,-430.0,0.00023193,2]
[362169505,1748052635857,-694.5,0.00023193,2]
[362169506,1748052635867,-430.50795567,0.00023193,2]
[362169507,1748052635877,-430.0,0.00023193,2]
[362169508,1748052635887,-430.0,0.00023193,2]
[362169509,1748052635896,-430.0,0.00023193,2]
[362169510,1748052635907,-214.05070818,0.00023193,2]
[362169511,1748052635917,-323.63580642,0.00023193,2]
[362169512,1748052635927,-430.0,0.00023193,2]
[362169513,1748052635937,-430.0,0.00023193,2]
[362169514,1748052635947,-437.53916776,0.00023193,2]
[362169515,1748052635957,-430.0,0.00023193,2]
[362169516,1748052635966,-430.0,0.00023193,2]
[362169517,1748052635976,-401.53797963,0.00023193,2]
[362169518,1748052635986,-430.0,0.00023193,2]
[362169519,1748052635996,-433.15696989,0.00023193,2]
[362169520,1748052636005,-430.0,0.00023193,2]
[362169521,1748052636015,-453.01806294,0.00023193,2]
[362169522,1748052636026,-534.04000877,0.00023193,2]
[362169523,1748052636036,-430.0,0.00023193,2]
[362169524,1748052636045,-437.73257034,0.00023193,2]
[362169525,1748052636057,-430.0,0.00023193,2]
[362169526,1748052636067,-1238.06,0.00023193,2]
[362169527,1748052636076,-430.0,0.00023193,2]
[362169528,1748052636086,-550.0,0.00023193,2]
[362169529,1748052636096,-452.72322738,0.00023193,2]
[362169530,1748052636107,-430.0,0.00023193,2]
[362169531,1748052636116,-430.0,0.00023193,2]
[362169532,1748052636127,-430.0,0.00023193,2]
[362169533,1748052636137,-430.0,0.00023193,2]
[362169534,1748052636147,-437.49995087,0.00023193,2]
[362169535,1748052636156,-326.3403616,0.00023193,2]
[362169536,1748052636166,-430.0,0.00023193,2]
[362169537,1748052636176,-430.0,0.00023193,2]
[362169538,1748052636187,-430.0,0.00023193,2]
[362169539,1748052636197,-430.0,0.00023193,2]
[362169540,1748052636206,-4173.28,0.00023193,2]
[362169541,1748052636217,-500.0,0.00023194,2]
[362169542,1748052636227,-10260.09,0.00023195,2]
[362169543,1748052636236,-10260.09,0.00023195,2]
[362169544,1748052636246,-500.0,0.00023195,2]
[362169545,1748052636256,-530.0,0.00023196,2]
[362169546,1748052636266,-430.0,0.00023196,2]
[362169547,1748052636278,-430.0,0.00023196,2]
[362169548,1748052636288,-430.0,0.00023196,2]
[362169549,1748052636297,-430.0,0.00023196,2]
[362169550,1748052636307,-430.0,0.00023196,2]
[362169551,1748052636317,-500.0,0.00023196,2]
[362169552,1748052636327,-10260.09,0.00023196,2]
[362169553,1748052636337,-511.41486756,0.00023196,2]
[362169554,1748052636347,-160.0,0.00023196,2]
[362169555,1748052636357,-430.0,0.00023197,2]
[362169556,1748052636367,-430.0,0.00023197,2]
[362169557,1748052636376,-430.0,0.00023197,2]
[362169558,1748052636386,-430.0,0.00023197,2]
[362169559,1748052636395,-437.20625501,0.00023197,2]
[362169560,1748052636404,-430.0,0.00023197,2]
[362169561,1748052636414,-430.0,0.00023197,2]
[362169562,1748052636423,-444.19504463,0.00023197,2]
[362169563,1748052636433,-439.75462502,0.00023197,2]
[362169564,1748052636443,-430.0,0.00023197,2]
[362169565,1748052636454,-445.34291189,0.00023197,2]
[362169566,1748052636464,-577.05768013,0.00023197,2]
[362169567,1748052636474,-430.0,0.00023197,2]
[362169568,1748052636486,-430.0,0.00023197,2]
[362169569,1748052636497,-430.0,0.00023197,2]
[362169570,1748052636507,-430.0,0.00023197,2]
[362169571,1748052636517,-430.0,0.00023197,2]
[362169572,1748052636527,-430.0,0.00023197,2]
[362169573,1748052636537,-430.0,0.00023197,2]
[362169574,1748052636547,-349.629134,0.00023197,2]
[362169575,1748052636557,-349.629134,0.00023197,2]
[362169576,1748052636566,-4427.75877367,0.0002323,2]
[362169577,1748052636576,-10260.09,0.00023286,2]
[362169578,1748052636585,-5554.78,0.00023287,2]
[362169579,1748052636594,-155.98913425,0.00023302,3]
[362169580,1748052636603,-152.83910384,0.00023302,3]
[362169581,1748052636613,-152.69593405,0.00023302,3]
[362169582,1748052636623,-430.0,0.00023367,2]
[362169583,1748052636633,-430.0,0.00023367,2]
[362169584,1748052636643,-430.0,0.00023367,2]
[362169585,1748052636652,-5785.77,0.00023367,2]
[362169586,1748052636662,-845.65,0.00023367,2]
[362169587,1748052636671,-430.0,0.00023367,2]
[362169588,1748052636681,-430.0,0.00023367,2]
[362169589,1748052636691,-8985.62,0.00023367,2]
[362169590,1748052636701,-7691.43,0.00023367,2]
[362169591,1748052636712,-430.0,0.00023367,2]
[362169592,1748052636721,-3645.91,0.00023367,2]
[362169593,1748052636731,-438.99,0.00023367,2]
[362169594,1748052636740,-430.0,0.00023367,2]
[362169595,1748052636750,-643.56,0.00023367,2]
[362169596,1748052636759,-4427.75877367,0.00023367,2]
[362169597,1748052636768,-430.0,0.00023367,2]
[362169598,1748052636777,-430.0,0.00023367,2]
[362169599,1748052636787,-429.82932934,0.00023367,2]
[362169600,1748052636797,-4348.92,0.00023367,2]
[362169601,1748052636806,-268.71738634,0.00023466,2]
[362169602,1748052636816,-500.0,0.00023466,2]
[362169603,1748052636826,-500.0,0.00023466,2]
[362169604,1748052636835,-500.0,0.00023466,2]
[362169605,1748052636845,-576.0805613,0.00023466,2]
[362169606,1748052636854,-500.0,0.00023466,2]
[362169607,1748052636863,-500.0,0.00023466,2]
[362169608,1748052636873,-500.0,0.00023466,2]
[362169609,1748052636883,-500.0,0.00023466,2]
[362169610,1748052636892,-643.56143014,0.00023466,2]
[362169611,1748052636905,-500.0,0.00023466,2]
[362169612,1748052636914,-1686.67,0.00023466,2]
[362169613,1748052636924,-430.0,0.00023466,2]
[362169614,1748052636935,-430.0,0.00023466,2]
[362169615,1748052636945,-487.26,0.00023466,2]
[362169616,1748052636954,-430.0,0.00023466,2]
[362169617,1748052636963,-430.0,0.00023466,2]
[362169618,1748052636973,-430.0,0.00023466,2]
[362169619,1748052636983,-430.0,0.00023466,2]
[362169620,1748052636993,-430.0,0.00023466,2]
[362169621,1748052637003,-204.69192191,0.00023466,2]
[362169622,1748052637012,-430.0,0.00023466,2]
[362169623,1748052637022,-10260.09,0.00023466,2]
[362169624,1748052637032,-10260.09,0.00023466,2]
[362169625,1748052637142,-430.0,0.00023466,2]
[362169626,1748052637152,-430.0,0.00023466,2]
[362169627,1748052637162,-430.0,0.00023466,2]
[362169628,1748052637171,-629.1,0.00023466,2]
[362169629,1748052637181,-430.0,0.00023466,2]
[362169630,1748052637190,-430.0,0.00023466,2]
[362169631,1748052637200,-430.0,0.00023466,2]
[362169632,1748052637210,-430.0,0.00023466,2]
[362169633,1748052637219,-430.0,0.00023466,2]
[362169634,1748052637229,-430.0,0.00023466,2]
[362169635,1748052637239,-430.0,0.00023466,2]
[362169636,1748052637248,-504.81,0.00023466,2]
[362169637,1748052637258,-512.24,0.00023466,2]
[362169638,1748052637269,-605.63,0.00023466,2]
[362169639,1748052637278,-1799.06,0.00023466,2]
[362169640,1748052637288,-247.69284596,0.00023466,2]
[362169641,1748052637298,-430.0,0.00023466,2]
[362169642,1748052637308,-437.27,0.00023466,2]
[362169643,1748052637318,-430.0,0.00023466,2]
[362169644,1748052637327,-349.629134,0.00023466,2]
[362169645,1748052637337,-349.629134,0.00023466,2]
[362169646,1748052637347,-3920.21,0.00023466,2]
[362169647,1748052637357,-430.0,0.00023466,2]
[362169648,1748052637367,-430.0,0.00023466,2]
[362169649,1748052637376,-430.0,0.00023466,2]
[362169650,1748052637386,-560.87,0.00023466,2]
[362169651,1748052637396,-757.97,0.00023466,2]
[362169652,1748052637405,-430.0,0.00023466,2]
[362169653,1748052637415,-430.0,0.00023466,2]
[362169654,1748052637425,-2416.72323916,0.00023466,3]
[362169655,1748052637434,-500.0,0.00023467,2]
[362169656,1748052637444,-9217.5766983,0.00023467,2]
[362169657,1748052637578,-2064.5055936,0.00023467,2]
[362169658,1748052637591,-1073.36495455,0.00023467,2]
[362169659,1748052637611,-36196.58321331,0.00023467,2]
[362169660,1748052637623,-430.0,0.00023467,2]
[362169661,1748052637633,-430.0,0.00023467,2]
[362169662,1748052637643,-430.0,0.00023467,2]
[362169663,1748052637652,-438.42068337,0.00023467,2]
[362169664,1748052637662,-577.04222491,0.00023467,2]
[362169665,1748052637673,-438.33116121,0.00023467,2]
[362169666,1748052637683,-430.0,0.00023467,2]
[362169667,1748052637693,-430.0,0.00023467,2]
[362169669,1748052637703,-430.0,0.00023467,2]
[362169671,1748052637712,-430.0,0.00023467,2]
[362169672,1748052637722,-430.0,0.00023467,2]
[362169673,1748052637732,-430.0,0.00023467,2]
[362169674,1748052637743,-430.0,0.00023467,2]
[362169676,1748052637752,-430.0,0.00023467,2]
[362169678,1748052637762,-430.0,0.00023467,2]
[362169680,1748052637771,-430.0,0.00023467,2]
[362169681,1748052637781,-430.0,0.00023467,2]
[362169683,1748052637790,-430.0,0.00023467,2]
[362169685,1748052637799,-430.0,0.00023467,2]
[362169687,1748052637809,-430.0,0.00023467,2]
[362169689,1748052637818,-430.0,0.00023467,2]
[362169691,1748052637828,-430.0,0.00023467,2]
[362169693,1748052637839,-151.04887863,0.00023467,2]
[362169694,1748052637848,-430.0,0.00023467,2]
[362169696,1748052637857,-430.0,0.00023467,2]
[362169698,1748052637867,-430.0,0.00023467,2]
[362169700,1748052637876,-430.0,0.00023467,2]
[362169702,1748052637886,-430.0,0.00023467,2]
[362169703,1748052637896,-430.0,0.00023467,2]
[362169704,1748052637906,-430.0,0.00023467,2]
[362169706,1748052637915,-430.0,0.00023467,2]
[362169708,1748052637925,-430.0,0.00023467,2]
[362169709,1748052637936,-430.0,0.00023467,2]
[362169710,1748052637947,-430.0,0.00023467,2]
[362169711,1748052637957,-430.0,0.00023467,2]
[362169713,1748052637966,-430.0,0.00023467,2]
[362169714,1748052637975,-430.0,0.00023467,2]
[362169715,1748052637985,-430.0,0.00023467,2]
[362169716,1748052637994,-430.0,0.00023467,2]
[362169717,1748052638004,-430.0,0.00023467,2]
[362169718,1748052638014,-430.0,0.00023467,2]
[362169719,1748052638024,-430.0,0.00023467,2]
[362169720,1748052638034,-430.0,0.00023467,2]
[362169721,1748052638043,-430.0,0.00023467,2]
[362169722,1748052638053,-430.0,0.00023467,2]
[362169723,1748052638062,-430.0,0.00023467,2]
[362169724,1748052638072,-430.0,0.00023467,2]
[362169725,1748052638082,-430.0,0.00023467,2]
[362169726,1748052638091,-430.0,0.00023467,2]
[362169727,1748052638101,-430.0,0.00023467,2]
[362169728,1748052638110,-430.0,0.00023467,2]
[362169729,1748052638120,-430.0,0.00023467,2]
[362169730,1748052638129,-430.0,0.00023467,2]
[362169731,1748052638140,-290.51812663,0.00023467,2]
[362169732,1748052638149,-430.0,0.00023467,2]
[362169733,1748052638159,-430.0,0.00023467,2]
[362169734,1748052638168,-430.0,0.00023467,2]
[362169735,1748052638180,-430.0,0.00023467,2]
[362169736,1748052638189,-430.0,0.00023467,2]
[362169737,1748052638199,-430.0,0.00023467,2]
[362169738,1748052638209,-430.0,0.00023467,2]
[362169739,1748052638218,-430.0,0.00023467,2]
[362169740,1748052638228,-430.0,0.00023467,2]
[362169741,1748052638239,-302.46263024,0.00023467,2]
[362169742,1748052638248,-430.0,0.00023467,2]
[362169743,1748052638259,-430.0,0.00023467,2]
[362169744,1748052638268,-430.0,0.00023467,2]
[362169745,1748052638278,-437.14421841,0.00023467,2]
[362169746,1748052638288,-430.0,0.00023467,2]
[362169747,1748052638298,-430.0,0.00023467,2]
[362169748,1748052638308,-443.66779385,0.00023467,2]
[362169749,1748052638317,-430.0,0.00023467,2]
[362169750,1748052638327,-430.0,0.00023467,2]
[362169751,1748052638337,-393.6524885,0.00023467,2]
[362169752,1748052638347,-430.0,0.00023467,2]
[362169753,1748052638357,-438.0170696,0.00023467,2]
[362169754,1748052638366,-430.0,0.00023467,2]
[362169755,1748052638375,-436.40310453,0.00023467,2]
[362169756,1748052638386,-430.0,0.00023467,2]
[362169757,1748052638397,-430.0,0.00023467,2]
[362169758,1748052638406,-430.0,0.00023467,2]
[362169759,1748052638416,-430.0,0.00023467,2]
[362169760,1748052638426,-430.0,0.00023467,2]
[362169761,1748052638435,-470.36,0.00023467,2]
[362169762,1748052638446,-430.0,0.00023467,2]
[362169763,1748052638457,-430.0,0.00023467,2]
[362169764,1748052638467,-430.0,0.00023467,2]
[362169765,1748052638479,-272.65823059,0.00023467,2]
[362169766,1748052638491,-466.53383779,0.00023467,2]
[362169767,1748052638501,-430.0,0.00023467,2]
[362169768,1748052638510,-430.0,0.00023467,2]
[362169769,1748052638520,-430.0,0.00023467,2]
[362169770,1748052638530,-430.0,0.00023467,2]
[362169771,1748052638539,-571.76353797,0.00023467,2]
[362169772,1748052638550,-194.99669289,0.00023467,2]
[362169773,1748052638560,-430.0,0.00023467,2]
[362169774,1748052638570,-430.0,0.00023467,2]
[362169775,1748052638579,-544.53,0.00023467,2]
[362169776,1748052638591,-813.61,0.00023467,2]
[362169777,1748052638600,-430.0,0.00023467,2]
[362169778,1748052638610,-10260.09,0.00023467,2]
[362169779,1748052638622,-430.0,0.00023467,2]
[362169780,1748052638633,-884.73,0.00023467,2]
[362169781,1748052638643,-430.0,0.00023467,2]
[362169782,1748052638652,-438.78188227,0.00023467,2]
[362169783,1748052638662,-6019.13,0.00023467,2]
[362169784,1748052638672,-482.36,0.00023467,2]
[362169785,1748052638681,-430.0,0.00023467,2]
[362169786,1748052638691,-430.0,0.00023467,2]
[362169787,1748052638700,-430.0,0.00023467,2]
[362169788,1748052638710,-430.0,0.00023467,2]
[362169789,1748052638719,-430.0,0.00023467,2]
[362169790,1748052638732,-649.14,0.00023467,2]
[362169791,1748052638742,-430.0,0.00023467,2]
[362169792,1748052638751,-430.0,0.00023467,2]
[362169793,1748052638760,-442.39270797,0.00023467,2]
[362169794,1748052638770,-763.5,0.00023467,2]
[362169795,1748052638779,-430.0,0.00023467,2]
[362169796,1748052638788,-430.0,0.00023467,2]
[362169797,1748052638798,-430.0,0.00023467,2]
[362169798,1748052638807,-430.0,0.00023467,2]
[362169799,1748052638817,-508.27,0.00023467,2]
[362169800,1748052638826,-430.0,0.00023467,2]
[362169801,1748052638836,-200.25294257,0.00023467,2]
[362169802,1748052638846,-430.0,0.00023467,2]
[362169803,1748052638855,-430.0,0.00023467,2]
[362169804,1748052638865,-430.0,0.00023467,2]
[362169805,1748052638875,-430.0,0.00023467,2]
[362169806,1748052638884,-430.0,0.00023467,2]
[362169807,1748052638894,-437.30223533,0.00023467,2]
[362169808,1748052638904,-430.0,0.00023467,2]
[362169809,1748052638913,-430.0,0.00023467,2]
[362169810,1748052638923,-433.34131454,0.00023467,2]
[362169811,1748052638932,-430.0,0.00023467,2]
[362169812,1748052638941,-430.0,0.00023467,2]
[362169813,1748052638951,-430.0,0.00023467,2]
[362169814,1748052638960,-430.0,0.00023467,2]
[362169815,1748052638970,-349.629134,0.00023467,2]
[362169816,1748052638979,-665.25,0.00023467,2]
[362169817,1748052638989,-349.629134,0.00023467,2]
[362169818,1748052638998,-420.15524708,0.00023467,2]
[362169819,1748052639008,-349.629134,0.00023467,2]
[362169820,1748052639118,-349.629134,0.00023467,2]
[362169821,1748052639128,-430.0,0.00023467,2]
[362169822,1748052639138,-430.0,0.00023467,2]
[362169823,1748052639148,-694.5,0.00023467,2]
[362169824,1748052639157,-430.0,0.00023467,2]
[362169825,1748052639167,-453.58668325,0.00023467,2]
[362169826,1748052639177,-430.0,0.00023467,2]
[362169827,1748052639186,-430.0,0.00023467,2]
[362169828,1748052639196,-430.0,0.00023467,2]
[362169829,1748052639206,-474.29628923,0.00023467,2]
[362169830,1748052639215,-430.0,0.00023467,2]
[362169831,1748052639225,-453.93409602,0.00023467,2]
[362169832,1748052639235,-430.0,0.00023467,2]
[362169833,1748052639245,-430.0,0.00023467,2]
[362169834,1748052639255,-430.0,0.00023467,2]
[362169835,1748052639265,-1238.06,0.00023467,2]
[362169836,1748052639274,-430.0,0.00023467,2]
[362169837,1748052639283,-406.13125955,0.00023467,2]
[362169838,1748052639293,-430.0,0.00023467,2]
[362169839,1748052639302,-430.0,0.00023467,2]
[362169840,1748052639312,-430.0,0.00023467,2]
[362169841,1748052639322,-430.0,0.00023467,2]
[362169842,1748052639331,-430.0,0.00023467,2]
[362169843,1748052639341,-570.0,0.00023467,2]
[362169844,1748052639351,-430.0,0.00023467,2]
[362169845,1748052639360,-4173.28,0.00023467,2]
[362169846,1748052639370,-10260.09,0.00023468,2]
[362169847,1748052639380,-10260.09,0.00023469,2]
[362169848,1748052639390,-10260.09,0.00023469,2]
[362169849,1748052639399,-430.0,0.0002347,2]
[362169850,1748052639409,-430.0,0.0002347,2]
[362169851,1748052639419,-430.0,0.0002347,2]
[362169852,1748052639429,-430.0,0.0002347,2]
[362169853,1748052639439,-430.0,0.0002347,2]
[362169854,1748052639448,-430.0,0.00023471,2]
[362169855,1748052639460,-430.0,0.00023471,2]
[362169856,1748052639470,-216.35662801,0.00023471,2]
[362169857,1748052639481,-430.0,0.00023471,2]
[362169858,1748052639493,-430.0,0.00023471,2]
[362169859,1748052639503,-430.0,0.00023471,2]
[362169860,1748052639513,-430.0,0.00023471,2]
[362169861,1748052639523,-373.60161665,0.00023471,2]
[362169862,1748052639532,-430.0,0.00023471,2]
[362169863,1748052639542,-560.07201755,0.00023471,2]
[362169864,1748052639551,-430.0,0.00023471,2]
[362169865,1748052639562,-430.0,0.00023471,2]
[362169866,1748052639571,-430.0,0.00023471,2]
[362169867,1748052639581,-456.04768395,0.00023471,2]
[362169868,1748052639590,-349.629134,0.00023471,2]
[362169869,1748052639600,-349.629134,0.00023471,2]
[362169870,1748052639609,-513.53907726,0.00023473,2]
[362169871,1748052639618,-1010.12,0.000235,2]
[362169872,1748052639629,-4427.75877367,0.00023504,2]
[362169873,1748052639638,-192.0,0.00023553,2]
[362169875,1748052639648,-293.66326728,0.00023562,3]
[362169876,1748052639657,-10260.09,0.00023611,2]
[362169877,1748052639669,-783.112433,0.00023612,7]
[362169878,1748052639679,-880.721198,0.00023641,2]
[362169879,1748052639690,-430.0,0.00023641,2]
[362169880,1748052639699,-430.0,0.00023641,2]
[362169881,1748052639708,-430.0,0.00023641,2]
[362169882,1748052639718,-5785.77,0.00023641,2]
[362169883,1748052639728,-845.65,0.00023641,2]
[362169884,1748052639737,-522.68677652,0.00023641,2]
[362169885,1748052639747,-430.0,0.00023641,2]
[362169886,1748052639756,-8985.62,0.00023641,2]
[362169887,1748052639766,-7691.43,0.00023641,2]
[362169888,1748052639777,-430.0,0.00023641,2]
[362169889,1748052639787,-3645.91,0.00023641,2]
[362169890,1748052639800,-438.99,0.00023641,2]
[362169891,1748052639818,-430.0,0.00023641,2]
[362169892,1748052639828,-643.56,0.00023641,2]
[362169893,1748052639838,-430.0,0.00023641,2]
[362169894,1748052639847,-4427.75877367,0.00023641,2]
[362169895,1748052639857,-430.0,0.00023641,2]
[362169896,1748052639866,-4348.92,0.00023641,2]
[362169897,1748052639876,-170.95911425,0.00023702,2]
[362169898,1748052639886,-502.80113086,0.00023721,2]
[362169900,1748052639896,-1686.67,0.0002374,2]
[362169901,1748052639906,-271.73632047,0.0002374,2]
[362169902,1748052639916,-430.0,0.0002374,2]
[362169903,1748052639926,-487.26,0.0002374,2]
[362169904,1748052639935,-430.0,0.0002374,2]
[362169905,1748052639945,-430.0,0.0002374,2]
[362169906,1748052639954,-430.0,0.0002374,2]
[362169907,1748052639964,-430.0,0.0002374,2]
[362169908,1748052639974,-430.0,0.0002374,2]
[362169909,1748052639983,-430.0,0.0002374,2]
[362169911,1748052639993,-10260.09,0.0002374,2]
[362169912,1748052640003,-10260.09,0.0002374,2]
[362169914,1748052640013,-477.8435885,0.0002374,2]
[362169916,1748052640022,-430.0,0.0002374,2]
[362169918,1748052640031,-430.0,0.0002374,2]
[362169920,1748052640041,-629.1,0.0002374,2]
[362169921,1748052640050,-430.0,0.0002374,2]
[362169923,1748052640062,-430.0,0.0002374,2]
[362169924,1748052640072,-458.31716733,0.0002374,2]
[362169925,1748052640081,-430.0,0.0002374,2]
[362169926,1748052640090,-430.0,0.0002374,2]
[362169927,1748052640100,-351.62958972,0.0002374,2]
[362169928,1748052640109,-437.03918346,0.0002374,2]
[362169929,1748052640119,-504.81,0.0002374,2]
[362169931,1748052640128,-512.24,0.0002374,2]
[362169932,1748052640138,-605.63,0.0002374,2]
[362169934,1748052640147,-1799.06,0.0002374,2]
[362169935,1748052640157,-430.0,0.0002374,2]
[362169936,1748052640166,-59.64257882,0.0002374,2]
[362169959,1748052640601,-493.72530065,0.00022925,2]
[362169961,1748052640611,-440.29852995,0.00023193,2]
[362169963,1748052640620,-377.62742118,0.0002374,2]
[362169965,1748052640630,-430.0,0.0002374,2]
[362169966,1748052640640,-349.629134,0.0002374,2]
[362169969,1748052640650,-349.629134,0.0002374,2]
[362169971,1748052640659,-76.49233767,0.0002374,2]
[362169973,1748052640672,-3843.71766233,0.0002374,2]
[362169975,1748052640682,-430.0,0.0002374,2]
[362169977,1748052640692,-430.0,0.0002374,2]
[362169979,1748052640703,-430.0,0.0002374,2]
[362169981,1748052640712,-560.87,0.0002374,2]
[362169983,1748052640722,-679.63021135,0.0002374,2]
[362169985,1748052640734,-78.33978865,0.0002374,2]
[362169987,1748052640744,-336.6670799,0.0002374,2]
[362169990,1748052640753,-430.0,0.0002374,2]
[362169991,1748052640763,-151.56198124,0.00023741,2]
[362169994,1748052640775,-348.43801876,0.00023741,2]
[362169996,1748052640784,-379.62106035,0.00023741,2]
[362169998,1748052640796,-50.37893965,0.00023741,2]
[362170000,1748052640805,-452.06374308,0.00023741,2]
[362170002,1748052640814,-438.18681558,0.00023741,2]
[362170004,1748052640824,-457.12558456,0.00023741,2]
[362170006,1748052640834,-430.0,0.00023741,2]
[362170008,1748052640843,-214.58684504,0.00023741,2]
[362170010,1748052640853,-430.0,0.00023741,2]
[362170011,1748052640862,-430.0,0.00023741,2]
[362170012,1748052640872,-430.0,0.00023741,2]
[362170013,1748052640881,-430.0,0.00023741,2]
[362170014,1748052640891,-152.01348324,0.00023741,2]
[362170015,1748052640901,-430.0,0.00023741,2]
[362170016,1748052640911,-430.0,0.00023741,2]
[362170017,1748052640920,-430.0,0.00023741,2]
[362170018,1748052640929,-430.0,0.00023741,2]
[362170019,1748052640939,-430.0,0.00023741,2]
[362170020,1748052640949,-430.0,0.00023741,2]
[362170021,1748052640958,-430.0,0.00023741,2]
[362170022,1748052640967,-430.0,0.00023741,2]
[362170023,1748052640976,-430.0,0.00023741,2]
[362170024,1748052640988,-430.0,0.00023741,2]
[362170025,1748052641098,-430.0,0.00023741,2]
[362170026,1748052641107,-430.0,0.00023741,2]
[362170027,1748052641116,-430.0,0.00023741,2]
[362170028,1748052641125,-430.0,0.00023741,2]
[362170029,1748052641135,-430.0,0.00023741,2]
[362170030,1748052641146,-430.0,0.00023741,2]
[362170031,1748052641155,-430.0,0.00023741,2]
[362170032,1748052641166,-430.0,0.00023741,2]
[362170033,1748052641175,-498.30399999,0.00023741,2]
[362170034,1748052641186,-430.0,0.00023741,2]
[362170035,1748052641198,-430.0,0.00023741,2]
[362170036,1748052641208,-146.4664543,0.00023741,2]
[362170037,1748052641220,-283.5335457,0.00023741,2]